Workbook

Sheet расчет накладных затрат (hidden)
B1: сентябрь | C1: уд вес% в общем V затрат (группы) | D1: расчет себестоимости за месяц | E1: октябрь (затраты 20 счет) | F1: октябрь (себестоимость | G1: ноябрь (затраты 20 счет) | H1: ноябрь (себестоимость | I1: декабрь (затраты 20 счет) | J1: декабрь (себестоимость | K1: ГП
A2: прямые расходы | B2: =SUM(B3:B6) -> 927899.47 | C2: =B2/B15 -> 0.7253697168 | D2: =C2*D15 -> 532490.391 | E2: =SUM(E3:E6) -> 1811255.57 | F2: =F15*C2 -> 1121388.106 | G2: =SUM(G3:G6) -> 1894926.89 | H2: =H15*G17/100 -> 1560151.476 | I2: =SUM(I3:I6) -> 2306909.42 | J2: =J15*I17/100 -> 2122079.951
A3: картон | B3: =554231+66241.47 -> 620472.47 | D3: =B3/B$2*D$2 -> 356068.3445 | E3: 1159078 | F3: =E3/E$2*F$2 -> 717610.6481 | G3: 1274144 | H3: =G3/G$2*H$2 -> 1049041.867 | I3: 1540382 | J3: =I3/I$2*J$2 -> 1416966.67
A4: расходн материалы | B4: 154794 | D4: =B4/B$2*D$2 -> 88831.08597 | E4: 264216.57 | F4: =E4/E$2*F$2 -> 163582.2818 | G4: 171183 | H4: =G4/G$2*H$2 -> 140940.2186 | I4: 285745 | J4: =I4/I$2*J$2 -> 262851.1247
A5: зарплата рабочих | B5: 129038 | D5: 74050.58123 | E5: 334491 | F5: 207090.725 | G5: 389759.39 | H5: 320900.8701 | I5: 412548 | J5: 379494.6746
A6: ЕСН | B6: =47190/2 -> 23595 | D6: 13540.3793 | E6: =106940/2 -> 53470 | F6: 33104.45143 | G6: =119681/2 -> 59840.5 | H6: 49268.52055 | I6: =136468.84/2 -> 68234.42 | J6: 62767.48164
A8: косвенные расходы | B8: =SUM(B9:B14) -> 351309.53 | C8: =B8/B15 -> 0.2746302832 | D8: =D15*C8 -> 201604.759 | E8: =SUM(E9:E14) -> 778880.67 | F8: =F15*C8 -> 424565.7437 | G8: =SUM(G9:G14) -> 1253261.33 | H8: =H15*G18/100 -> 1031848.524 | I8: =SUM(I9:I14) -> 1661843.9 | J8: =J15*I18/100 -> 1528697.049
A9: зарплата АУП | B9: =247065-B5+30140 -> 148167 | D9: =B9/B$8*D$8 -> 85028.07289 | E9: 287981 | F9: =E9/E$8*F$8 -> 156977.6631 | G9: =743915.22-G5 -> 354155.83 | H9: =G9/G$8*H$8 -> 291587.3662 | I9: =847475.58-I5 -> 434927.58 | J9: =I9/I$8*J$8 -> 400081.2038
A10: есн | B10: 23595 | D10: =B10/B$8*D$8 -> 13540.3793 | E10: =E6 -> 53470 | F10: =E10/E$8*F$8 -> 29146.35218 | G10: 59840.5 | H10: =G10/G$8*H$8 -> 49268.52055 | I10: 68234.42 | J10: =I10/I$8*J$8 -> 62767.48164
A11: аренда | B11: 175347.53 | D11: 100626.0676 | E11: =113649.15+224719.52+36141 -> 374509.67 | F11: =E11/E$8*F$8 -> 204144.2068 | G11: =606175+65848 -> 672023 | H11: =G11/G$8*H$8 -> 553297.1647 | I11: 938947.9 | J11: =I11/I$8*J$8 -> 863719.4406
A12: коммуналка | F12: =E12/E$8*F$8 -> 0 | H12: =G12/G$8*H$8 -> 0 | J12: =I12/I$8*J$8 -> 0
A13: амортизация | G13: 115242 | H13: 94882.27613 | I13: 115242 | J13: 106008.8167
A14: командировочные, хознужды | B14: 4200 | D14: 2410.239163 | E14: 62920 | F14: 34297.52159 | G14: 52000 | H14: 42813.19622 | I14: 104492 | J14: 96120.10612
A15: ИТОГО Затрат за месяц | B15: =B8+B2 -> 1279209 | C15: 1 | D15: =B21 -> 734095.15 | E15: =E8+E2 -> 2590136.24 | F15: =K16 -> 1545953.85 | G15: =G8+G2 -> 3148188.22 | H15: 2592000 | I15: =I8+I2 -> 3968753.32 | J15: 3650777 | K15: =2280049 -> 2280049
K16: =K15-D15 -> 1545953.85
A17: уд вес прямых | B17: =B2/B15% -> 72.53697168 | E17: =E2/E15% -> 69.92896906 | G17: =G2/G15% -> 60.19102918 | I17: =I2/I15% -> 58.1268029
A18: уд вес накладных | B18: =B8/B15% -> 27.46302832 | E18: =100-E17 -> 30.07103094 | G18: =100-G17 -> 39.80897082 | I18: =100-I17 -> 41.8731971
A20: выручка сентябрь | B20: 722731.86
A21: себестоимость сентябрь | B21: 734095.15
A25: расчет накладных затрат по заказно | B25: сентябрь 2017 | E25: октябрь 2017 | G25: ноябрь 2017 | I25: декабрь 2017
A26: прямые затраты на тираж | B26: =B17 -> 72.53697168 | E26: =E17 -> 69.92896906 | F26: =#REF! ->  | G26: =G17 -> 60.19102918 | I26: =I17 -> 58.1268029
A27: накладные затраты на тираж | B27: =B18 -> 27.46302832 | D27: =D28-D26 -> 0 | E27: =E18 -> 30.07103094 | F27: =F28-F26 ->  | G27: =G18 -> 39.80897082 | H27: =H28-H26 -> 0 | I27: =I18 -> 41.8731971 | J27: =J28-J26 -> 0
A28: итого затраты на тираж | B28: =B27+B26 -> 100 | D28: =B28*D26/B26 -> 0 | E28: =E27+E26 -> 100 | F28: =E28*F26/E26 ->  | G28: =G27+G26 -> 100 | H28: =G28*H26/G26 -> 0 | I28: =I27+I26 -> 100 | J28: =I28*J26/I26 -> 0
B30: сентябрь 2017 | E30: октябрь 2017 | G30: ноябрь 2017 | I30: декабрь 2017
A31: расшифровка накладных затрат | B31: уд вес в накл каждой статьи в общем обьеме накл затрат | D31: сумма на тираж постатейно | E31: уд вес в накл каждой статьи в общем обьеме накл затрат | F31: сумма на тираж постатейно | G31: уд вес в накл каждой статьи в общем обьеме накл затрат | H31: сумма на тираж постатейно | I31: уд вес в накл каждой статьи в общем обьеме накл затрат | J31: сумма на тираж постатейно
A32: =A9 -> зарплата АУП | B32: =B9/B$8% -> 42.17562786 | D32: =B32*D$38/100 -> 0 | E32: =E9/E$8% -> 36.97369971 | F32: =E32*F$38/100 ->  | G32: =G9/G$8% -> 28.25873755 | H32: =G32*H$38/100 -> 0 | I32: =I9/I$8% -> 26.17138589 | J32: =I32*J$38/100 -> 0
A33: есн | B33: 6.716299441 | D33: =B33*D$38/100 -> 0 | E33: =E10/E$8% -> 6.864979715 | G33: 4.774782287 | H33: 0 | I33: =I10/I$8% -> 4.105946413 | J33: 0
A34: аренда | B34: 49.91254578 | D34: 0 | E34: 48.0830613 | G34: 53.62193693 | H34: 0 | I34: =I11/I$8% -> 56.50036685 | J34: 0
A35: коммуналка | B35: 0 | D35: 0 | E35: 0 | G35: 0 | H35: 0 | I35: =I12/I$8% -> 0 | J35: 0
A36: амортизация | B36: 0 | D36: 0 | E36: 0 | G36: 9.195368695 | H36: 0 | I36: =I13/I$8% -> 6.934586335 | J36: 0
A37: командировочные, хознужды | B37: 1.195526919 | D37: 0 | E37: 8.078259279 | G37: 4.149174538 | H37: 0 | I37: =I14/I$8% -> 6.287714508 | J37: 0
B38: 100 | D38: =D27 -> 0 | E38: 100 | F38: =F27 ->  | G38: 100 | H38: =H27 -> 0 | I38: 100 | J38: =J27 -> 0

Sheet номенклатура (hidden)
A1: номенклатура на 01.01.2018
A2: Бумага офсетн.ф.840 пл.120 (90001)
A3: Не предусмотрено
A4: Бумага офсетн.ф.840 пл.120 (90001)
A5: Бумага+картон, 135гр бурые 1050мм (10004)
A6: Бумага+картон, 135гр бурые 1200мм (110005)
A7: Бумага+картон, 135гр бурые 1250мм (10005)
A8: Бумага+картон, 135гр бурые 1400мм (10003)
A9: Бумага+картон, 135гр бурые 700мм (100010)
A10: Бумага+картон, 135гр бурые 720мм (901)
A11: Бумага+картон, 135гр бурые 850мм (10001)
A12: Картон мелованный WLC Master Star 280г (110048)
A13: Картон Н 0,25 ф.72 (990)
A14: Картон роль Нева 350 700(110018)
A15: Картон роль Нева 390 700(10018)
A16: Картон "Ладога" 220гр 600мм (10013)
A17: Картон "Ладога" 300гр 700мм (10014)
A18: Картон "Ладога" 320гр 600мм (110016)
A19: Картон "Ладога" 320гр 720мм (11848)
A20: Картон "Ладога" 420гр 450*840 (10028)
A21: Картон "Ладога" 420гр 500мм (10066)
A22: Картон "Ладога" 420гр 690*600 (10027)
A23: Картон "Ладога" 420гр 700мм (10067)
A24: Картон Excellent мел.карт 275гр 70*100 (10052)
A25: Картон Multikolor Spezial 230 ф.525*890 (110047)
A26: Картон Multikolor Spezial 230 ф.620 (110049)
A27: Картон Multikolor Spezial 280 ф.620 (110055)
A28: Картон Multikolor Spezial 320 ф.700 (10849)
A29: Картон SINAR KRAFT HB 380 лист 450*840 (555)
A30: Картон SINAR KRAFT HB 380 лист 550*1045 (777)
A31: Картон UMKA 230гр 600/1000/150мм (110042)
A32: Картон UMKA 230гр 700/1000/150мм ( 111018 )
A33: Картон Г/К 715х765 бурый
A34: Картон Г/К 765х715 бурый
A35: Картон лист "Ладога" 220 840 d1000 (110020)
A36: Картон лист "Ладога" 420гр 700*660 ( 10029)
A37: Картон лист "Ладога" 420гр 840 мм ( 10019)
A38: Картон лист Нева 450 580*840 (10037)
A39: Картон лист Нева 450 620*960 (10036)
A40: Картон лист Нева 450гр роль 620 (110022)
A41: Картон мелованный MasterKarton Plus 295г 720*1040 ( 888)
A42: Картон мелованный SVETOCOAT пл.175г/м2 ф.70см (111018)
A43: Картон мелованный SVETOCOAT пл.175г/м2 ф.72см (10948)
A44: Картон МО 230 гр ф.720( 10948)
A45: Картон Нева 235гр ф.700( 111018)
A46: Картон Нева 450гр картон 840мм (10022)
A47: Картон умка,300 62*94(2004)
A48: Картон-лайнер Master Liner 180г 1050/1100/150мм (110043)
A49: Картон-лайнер Master Liner 180г 600/1000/150мм (110042)
A50: Картон-лайнер Master Liner 180г 620/1100/150мм (110038)
A51: КТ Белый, 135 гр картон 850мм(11008)
A52: КТ Белый, 135/140 гр картон 1200мм(10951)
A53: КТ Белый, 135/140 гр картон 1250мм(10008)
A54: КТ Белый, 140 гр картон 1050мм(10006)
A55: КТ Белый, 140 гр картон 1400мм(10007)
A56: Нева 240 гр картон 510*920(10900)
A57: Нева 280 гр картон 700*1000(10047)
A58: Нева 320 гр картон 700*1000(110052)
A59: Нева 420 гр картон 700*800(10038)
A60: Нева 450 гр картон 1050мм (222)
A61: Нева 450 гр картон 450*840(10034)
A62: Нева 450 гр картон 525*990(110037)
A63: Нева 450 гр картон 540*720(10033)
A64: Нева 450 гр картон 550*1050(10032)
A65: Нева 450 гр картон 620*770(10031)
A66: Нева 450 гр картон 620*960(10036)
A67: Нева 450 гр картон 790*740(10035)
A68: Нева роль 240 600(110042)
A69: Нева роль 240 620(110038)
A70: Нева роль 240 700 (111018)
A71: Нева роль 420, 390-600(10024)
A72: НМ 190 ф62 Сураж (110017)
A73: НМ 190 ф70 Сураж (110019)
A74: НМ 190 ф84 Сураж (110020)
A75: НМ 360 ф70 Сураж (110021)
A76: Офсет 100гр 840мм ( 10009)
A77: Подпергамент П 2с 45 ф.84(11011)
A78: Светогорск цел 210 гр.лайнер 600*840(10050)
A79: Светогорск цел 210 гр.лайнер 700*820(10051)
A81: расходные материалы
A82: Биг.каналы 0,5мм*1,5мм
A83: Не предусмотрено
A84: Вертикальный присос для Роланд 30,5 мм
A85: Вертикальный присос для Роланд 41 мм
A86: Ветошь
A87: Глянцевый лак
A88: Губки вискозные
A89: Гуммирующие покрытие для СТП
A90: Дисперсия ДЭ 30/5
A91: Добавка в увлажнение IPS, 210л
A92: Клей EUKALIN 6290
A93: Клей EUKALIN 6325
A94: Клей д/гофроагрегата
A95: Концентрат увлажнения Гидрофаст 316
A96: Краска офсетная INNOVATION Cyan
A97: Краска офсетная Magenta
A98: Краска офсетная Panton 280
A99: Краска офсетная Panton Black
A100: Краска офсетная Panton процесс blue
A101: Краска офсетная Universon-E Yellow
A102: Краска офсетная XETRON Black
A103: Краска пантон PURLE
A104: Краска пантон блю 072
A105: Краска пантон бронза
A106: Краска пантон зеленый
A107: Краска пантон золото
A108: Краска пантон красный ВАРМ
A109: Краска пантон красный Рубин
A110: Краска пантон прозр.
A111: Краска пантон РАДОМИН
A112: Краска пантон рефлекс блю
A113: Краска пантон смесевой 1345с
A114: Краска пантон смесевой 153
A115: Краска пантон смесевой 156
A116: Краска пантон смесевой 4655с
A117: Краска пантон смесевой 4695
A118: Краска пантон фиолет
A119: Лак глянцевый AguaGloss
A120: Лак жиростойкий
A121: Лак масл.глянец.
A122: Лак матовый
A123: Лак праймер 1680
A124: Лак УФ 3890
A125: Лента клейкая
A126: Лента приправочная бумажная 6,5*0,05
A127: Лента приправочная металлическая
A128: Марзан красный
A129: Нож ракельный
A130: Отсекатель листа плоский для Роланд
A131: Офсетная резина 1060х910х1,96мм
A132: Очиститель голубой
A133: Очиститель розовый
A134: Паста д/снижения липкости
A135: Перчатки резинов.
A136: Пластины д/СТП 1040*805
A137: Пластины д/СТП 510*400
A138: Пленка ПВХ
A139: Плоский присос для Роланд 41мм
A140: Поддекельное полотно
A141: Поддекельное полотно д/лакировки
A142: Противоотмарыв.порошок
A143: Проявитель пластин PL 10D
A144: Проявитель пластин PL 10R
A145: Резина офсетная
A146: Ручная смывка для резин и валиков
A147: Скоба мет.
A148: Скобы для стягивания стрейптнг- ленты
A149: Скотч
A150: Спиртовая добавка IPS
A151: Средство для смывки валиков лаковой секции
A152: Стрейпинг лента
A153: Стрейч
A154: Уплотнение для лака на водной основе
A155: Щетка белая для VSP85

Sheet l
A1: =IFERROR(INDEX(_s,ROW()),) -> расчет накладных затрат | F1: листы заказов добавлять только справа от свод по материалам
A2: =IFERROR(INDEX(_s,ROW()),) -> номенклатура | E2: свод по материалам | F2: другие - только слева
A3: l | F3: свод по материалам не переименовывать
A4: свод по материалам
A5: вкладыш
A6: Атва №2
A7: Финляндия
A8: 0
A9: 0
A10: 0
A11: 0
A12: 0
A13: 0
A14: 0
A15: 0
A16: 0
A17: 0
A18: 0
A19: 0
A20: 0
A21: 0
A22: 0
A23: 0
A24: 0
A25: 0
A26: 0
A27: 0
A28: 0
A29: 0
A30: 0
A31: 0
A32: 0
A33: 0
A34: 0
A35: 0
A36: 0
A37: 0
A38: 0
A39: 0
A40: =IFERROR(INDEX(_s,ROW()),"") -> 

Sheet свод по материалам
A1: номенклатура на 01.01.2018 | B1: кол-во план | C1: кол-во факт (списание) | E1: !B14:B57 | F1: !D14:D57 | G1: !K14:K57 | H1: =CHAR(39) -> '
A2: Бумага офсетн.ф.840 пл.120 (90001) | B2: =SUMPRODUCT(SUMIF(INDIRECT($H$1&_w&$H$1&$E$1),$A2,INDIRECT($H$1&_w&$H$1&F$1))) -> 0 | C2: =SUMPRODUCT(SUMIF(INDIRECT($H$1&_w&$H$1&$E$1),$A2,INDIRECT($H$1&_w&$H$1&G$1))) -> 0
A3: Не предусмотрено | B3: =SUMPRODUCT(SUMIF(INDIRECT($H$1&_w&$H$1&$E$1),$A3,INDIRECT($H$1&_w&$H$1&F$1))) -> 509.3592 | C3: =SUMPRODUCT(SUMIF(INDIRECT($H$1&_w&$H$1&$E$1),$A3,INDIRECT($H$1&_w&$H$1&G$1))) -> 509.3592
A4: Бумага офсетн.ф.840 пл.120 (90001) | B4: =SUMPRODUCT(SUMIF(INDIRECT($H$1&_w&$H$1&$E$1),$A4,INDIRECT($H$1&_w&$H$1&F$1))) -> 0 | C4: =SUMPRODUCT(SUMIF(INDIRECT($H$1&_w&$H$1&$E$1),$A4,INDIRECT($H$1&_w&$H$1&G$1))) -> 0
A5: Бумага+картон, 135гр бурые 1050мм (10004) | B5: =SUMPRODUCT(SUMIF(INDIRECT($H$1&_w&$H$1&$E$1),$A5,INDIRECT($H$1&_w&$H$1&F$1))) -> 0 | C5: =SUMPRODUCT(SUMIF(INDIRECT($H$1&_w&$H$1&$E$1),$A5,INDIRECT($H$1&_w&$H$1&G$1))) -> 0
A6: Бумага+картон, 135гр бурые 1200мм (110005) | B6: =SUMPRODUCT(SUMIF(INDIRECT($H$1&_w&$H$1&$E$1),$A6,INDIRECT($H$1&_w&$H$1&F$1))) -> 0 | C6: =SUMPRODUCT(SUMIF(INDIRECT($H$1&_w&$H$1&$E$1),$A6,INDIRECT($H$1&_w&$H$1&G$1))) -> 0
A7: Бумага+картон, 135гр бурые 1250мм (10005) | B7: =SUMPRODUCT(SUMIF(INDIRECT($H$1&_w&$H$1&$E$1),$A7,INDIRECT($H$1&_w&$H$1&F$1))) -> 0 | C7: =SUMPRODUCT(SUMIF(INDIRECT($H$1&_w&$H$1&$E$1),$A7,INDIRECT($H$1&_w&$H$1&G$1))) -> 0
A8: Бумага+картон, 135гр бурые 1400мм (10003) | B8: =SUMPRODUCT(SUMIF(INDIRECT($H$1&_w&$H$1&$E$1),$A8,INDIRECT($H$1&_w&$H$1&F$1))) -> 0 | C8: =SUMPRODUCT(SUMIF(INDIRECT($H$1&_w&$H$1&$E$1),$A8,INDIRECT($H$1&_w&$H$1&G$1))) -> 0
A9: Бумага+картон, 135гр бурые 700мм (100010) | B9: =SUMPRODUCT(SUMIF(INDIRECT($H$1&_w&$H$1&$E$1),$A9,INDIRECT($H$1&_w&$H$1&F$1))) -> 4494.3012 | C9: =SUMPRODUCT(SUMIF(INDIRECT($H$1&_w&$H$1&$E$1),$A9,INDIRECT($H$1&_w&$H$1&G$1))) -> 4494.3012
A10: Бумага+картон, 135гр бурые 720мм (901) | B10: =SUMPRODUCT(SUMIF(INDIRECT($H$1&_w&$H$1&$E$1),$A10,INDIRECT($H$1&_w&$H$1&F$1))) -> 3492.7488 | C10: =SUMPRODUCT(SUMIF(INDIRECT($H$1&_w&$H$1&$E$1),$A10,INDIRECT($H$1&_w&$H$1&G$1))) -> 3492.7488
A11: Бумага+картон, 135гр бурые 850мм (10001) | B11: =SUMPRODUCT(SUMIF(INDIRECT($H$1&_w&$H$1&$E$1),$A11,INDIRECT($H$1&_w&$H$1&F$1))) -> 0 | C11: =SUMPRODUCT(SUMIF(INDIRECT($H$1&_w&$H$1&$E$1),$A11,INDIRECT($H$1&_w&$H$1&G$1))) -> 0
A12: Картон мелованный WLC Master Star 280г (110048) | B12: =SUMPRODUCT(SUMIF(INDIRECT($H$1&_w&$H$1&$E$1),$A12,INDIRECT($H$1&_w&$H$1&F$1))) -> 0 | C12: =SUMPRODUCT(SUMIF(INDIRECT($H$1&_w&$H$1&$E$1),$A12,INDIRECT($H$1&_w&$H$1&G$1))) -> 0
A13: Картон Н 0,25 ф.72 (990) | B13: =SUMPRODUCT(SUMIF(INDIRECT($H$1&_w&$H$1&$E$1),$A13,INDIRECT($H$1&_w&$H$1&F$1))) -> 0 | C13: =SUMPRODUCT(SUMIF(INDIRECT($H$1&_w&$H$1&$E$1),$A13,INDIRECT($H$1&_w&$H$1&G$1))) -> 0
A14: Картон роль Нева 350 700(110018) | B14: =SUMPRODUCT(SUMIF(INDIRECT($H$1&_w&$H$1&$E$1),$A14,INDIRECT($H$1&_w&$H$1&F$1))) -> 0 | C14: =SUMPRODUCT(SUMIF(INDIRECT($H$1&_w&$H$1&$E$1),$A14,INDIRECT($H$1&_w&$H$1&G$1))) -> 0
A15: Картон роль Нева 390 700(10018) | B15: =SUMPRODUCT(SUMIF(INDIRECT($H$1&_w&$H$1&$E$1),$A15,INDIRECT($H$1&_w&$H$1&F$1))) -> 0 | C15: =SUMPRODUCT(SUMIF(INDIRECT($H$1&_w&$H$1&$E$1),$A15,INDIRECT($H$1&_w&$H$1&G$1))) -> 0
A16: Картон "Ладога" 220гр 600мм (10013)
A17: Картон "Ладога" 300гр 700мм (10014)
A18: Картон "Ладога" 320гр 600мм (110016)
A19: Картон "Ладога" 320гр 720мм (11848)
A20: Картон "Ладога" 420гр 450*840 (10028)
A21: Картон "Ладога" 420гр 500мм (10066)
A22: Картон "Ладога" 420гр 690*600 (10027)
A23: Картон "Ладога" 420гр 700мм (10067)
A24: Картон Excellent мел.карт 275гр 70*100 (10052)
A25: Картон Multikolor Spezial 230 ф.525*890 (110047)
A26: Картон Multikolor Spezial 230 ф.620 (110049)
A27: Картон Multikolor Spezial 280 ф.620 (110055)
A28: Картон Multikolor Spezial 320 ф.700 (10849)
A29: Картон SINAR KRAFT HB 380 лист 450*840 (555)
A30: Картон SINAR KRAFT HB 380 лист 550*1045 (777)
A31: Картон UMKA 230гр 600/1000/150мм (110042)
A32: Картон UMKA 230гр 700/1000/150мм ( 111018 )
A33: Картон Г/К 715х765 бурый
A34: Картон Г/К 765х715 бурый
A35: Картон лист "Ладога" 220 840 d1000 (110020)
A36: Картон лист "Ладога" 420гр 700*660 ( 10029)
A37: Картон лист "Ладога" 420гр 840 мм ( 10019)
A38: Картон лист Нева 450 580*840 (10037)
A39: Картон лист Нева 450 620*960 (10036)
A40: Картон лист Нева 450гр роль 620 (110022)
A41: Картон мелованный MasterKarton Plus 295г 720*1040 ( 888)
A42: Картон мелованный SVETOCOAT пл.175г/м2 ф.70см (111018)
A43: Картон мелованный SVETOCOAT пл.175г/м2 ф.72см (10948)
A44: Картон МО 230 гр ф.720( 10948)
A45: Картон Нева 235гр ф.700( 111018)
A46: Картон Нева 450гр картон 840мм (10022)
A47: Картон умка,300 62*94(2004)
A48: Картон-лайнер Master Liner 180г 1050/1100/150мм (110043)
A49: Картон-лайнер Master Liner 180г 600/1000/150мм (110042)
A50: Картон-лайнер Master Liner 180г 620/1100/150мм (110038)
A51: КТ Белый, 135 гр картон 850мм(11008)
A52: КТ Белый, 135/140 гр картон 1200мм(10951)
A53: КТ Белый, 135/140 гр картон 1250мм(10008)
A54: КТ Белый, 140 гр картон 1050мм(10006)
A55: КТ Белый, 140 гр картон 1400мм(10007)
A56: Нева 240 гр картон 510*920(10900)
A57: Нева 280 гр картон 700*1000(10047)
A58: Нева 320 гр картон 700*1000(110052)
A59: Нева 420 гр картон 700*800(10038)
A60: Нева 450 гр картон 1050мм (222)
A61: Нева 450 гр картон 450*840(10034)
A62: Нева 450 гр картон 525*990(110037)
A63: Нева 450 гр картон 540*720(10033)
A64: Нева 450 гр картон 550*1050(10032)
A65: Нева 450 гр картон 620*770(10031)
A66: Нева 450 гр картон 620*960(10036)
A67: Нева 450 гр картон 790*740(10035)
A68: Нева роль 240 600(110042)
A69: Нева роль 240 620(110038)
A70: Нева роль 240 700 (111018)
A71: Нева роль 420, 390-600(10024)
A72: НМ 190 ф62 Сураж (110017)
A73: НМ 190 ф70 Сураж (110019)
A74: НМ 190 ф84 Сураж (110020)
A75: НМ 360 ф70 Сураж (110021)
A76: Офсет 100гр 840мм ( 10009)
A77: Подпергамент П 2с 45 ф.84(11011)
A78: Светогорск цел 210 гр.лайнер 600*840(10050)
A79: Светогорск цел 210 гр.лайнер 700*820(10051)
A81: расходные материалы
A82: Биг.каналы 0,5мм*1,5мм
A83: Не предусмотрено
A84: Вертикальный присос для Роланд 30,5 мм
A85: Вертикальный присос для Роланд 41 мм
A86: Ветошь
A87: Глянцевый лак
A88: Губки вискозные
A89: Гуммирующие покрытие для СТП
A90: Дисперсия ДЭ 30/5
A91: Добавка в увлажнение IPS, 210л
A92: Клей EUKALIN 6290
A93: Клей EUKALIN 6325
A94: Клей д/гофроагрегата
A95: Концентрат увлажнения Гидрофаст 316
A96: Краска офсетная INNOVATION Cyan
A97: Краска офсетная Magenta | B97: =SUM(вкладыш:Финляндия!D37) -> 14.55312 | C97: =SUM(вкладыш:Финляндия!K37) -> 14.55312
A98: Краска офсетная Panton 280
A99: Краска офсетная Panton Black
A100: Краска офсетная Panton процесс blue
A101: Краска офсетная Universon-E Yellow
A102: Краска офсетная XETRON Black
A103: Краска пантон PURLE
A104: Краска пантон блю 072
A105: Краска пантон бронза
A106: Краска пантон зеленый
A107: Краска пантон золото
A108: Краска пантон красный ВАРМ
A109: Краска пантон красный Рубин
A110: Краска пантон прозр.
A111: Краска пантон РАДОМИН
A112: Краска пантон рефлекс блю
A113: Краска пантон смесевой 1345с
A114: Краска пантон смесевой 153
A115: Краска пантон смесевой 156
A116: Краска пантон смесевой 4655с
A117: Краска пантон смесевой 4695
A118: Краска пантон фиолет
A119: Лак глянцевый AguaGloss
A120: Лак жиростойкий
A121: Лак масл.глянец.
A122: Лак матовый
A123: Лак праймер 1680
A124: Лак УФ 3890
A125: Лента клейкая
A126: Лента приправочная бумажная 6,5*0,05
A127: Лента приправочная металлическая
A128: Марзан красный
A129: Нож ракельный
A130: Отсекатель листа плоский для Роланд
A131: Офсетная резина 1060х910х1,96мм
A132: Очиститель голубой
A133: Очиститель розовый
A134: Паста д/снижения липкости
A135: Перчатки резинов.
A136: Пластины д/СТП 1040*805 | B136: =SUM(вкладыш:Финляндия!D42) -> 6 | C136: =SUM(вкладыш:Финляндия!K42) -> 6
A137: Пластины д/СТП 510*400
A138: Пленка ПВХ
A139: Плоский присос для Роланд 41мм
A140: Поддекельное полотно
A141: Поддекельное полотно д/лакировки
A142: Противоотмарыв.порошок
A143: Проявитель пластин PL 10D
A144: Проявитель пластин PL 10R
A145: Резина офсетная
A146: Ручная смывка для резин и валиков
A147: Скоба мет.
A148: Скобы для стягивания стрейптнг- ленты
A149: Скотч
A150: Спиртовая добавка IPS
A151: Средство для смывки валиков лаковой секции
A152: Стрейпинг лента
A153: Стрейч
A154: Уплотнение для лака на водной основе
A155: Щетка белая для VSP85

Sheet вкладыш
B1: тираж | C1: 115 | D1: данные от технологов
B2: =SUM(SUMIF(INDIRECT({""}&"!A1:A10"),$A2,INDIRECT({"Лист1","Лист2","Лист3"}&"!B1:B10"))) -> 
B3: кол-во листов | C3: 115
B4: площадь гофрирования,м2
B5: размер листа (площадь лайнера),м2
B6: количество резов картона,шт
B9: Калькуляция себестоимости изделия
B10: Вкладыш | C10: 43010
B13: вид операции | C13: цена (план) | D13: кол-во, кг | E13: норма расхода (кг/м2) | F13: Коэфициент гофрирования, | G13: стоимость изделия, руб | H13: Стоимость тиража, руб | J13: факт цена по требованию | K13: кол-во, кг | L13: стоимость тиража факт | M13: стоимоть изделия, факт,руб
B14: Микрогофрокартон (изготовление)
B15: Картон (плоский слой)
B16: Не предусмотрено | D16: =E16*C$4 -> 0 | E16: 0.14 | G16: =H16/C1 -> 0 | H16: =C16*D16 -> 0 | K16: =D16 -> 0 | L16: =J16*K16 -> 0 | M16: =L16/C1 -> 0
B17: Картон (флютинг)
B18: Не предусмотрено | D18: =C4*E18*F18 -> 0 | E18: 0.135 | F18: 1.3 | G18: =H18/C1 -> 0 | H18: =D18*C18 -> 0 | K18: =D18 -> 0 | L18: =J18*K18 -> 0 | M18: =L18/C1 -> 0
B19: Клей гофро
B20: Не предусмотрено | D20: =E20*C$4 -> 0 | E20: 0.01 | G20: =H20/C1 -> 0 | H20: =D20*C20 -> 0 | K20: =D20 -> 0 | L20: =J20*K20 -> 0 | M20: =L20/C1 -> 0
B21: Печатная часть
B22: Картон (Лайнер)
B23: Подпергамент П 2с 45 ф.84(11011) | C23: 70 | D23: =1.01*C1 -> 116.15 | G23: =H23/C1 -> 70.7 | H23: =D23*C23 -> 8130.5 | J23: 59 | K23: =D23 -> 116.15 | L23: =J23*K23 -> 6852.85 | M23: =L23/C1 -> 59.59
B24: Клей ПВА
B25: Не предусмотрено | D25: =E25*C5 -> 0 | E25: 0.035 | G25: =H25/C1 -> 0 | H25: =D25*C25 -> 0 | K25: =D25 -> 0 | L25: =J25*K25 -> 0 | M25: =L25/C1 -> 0
B26: Клей кашировальный 2
B27: Не предусмотрено
B28: Клей ФСЛ
B29: Не предусмотрено
B30: Клей ФСЛ
B31: Не предусмотрено
B32: Лак ВД
B33: Не предусмотрено
B34: Лак УФ
B35: Не предусмотрено
B36: Краска
B37: Не предусмотрено
B42: Пластины (при наличии краски)
B43: Не предусмотрено
B44: Пленка Ламин /м
B45: Не предусмотрено
B46: Пленка Окошко/мм
B47: Не предусмотрено
B48: Прокладка для тортов
B49: Не предусмотрено
B50: Бумага мешочная
B51: Не предусмотрено
B53: Спиртовая добавка IPSт ( при наличии краски)
B54: Концентрат увлажнения
B55: прочие расходные материалы (5% от объема осн материалов) | G55: =H55/C1 -> 3.535 | H55: =(H51+H49+H47+H45+H43+H37+H35+H33+H31+H29+H27+H25+H23+H20+H18+H16+H38+H39+H40+H41)*5% -> 406.525 | L55: =(L51+L49+L47+L45+L43+L37+L35+L33+L31+L29+L27+L25+L23+L20+L18+L16)*5% -> 342.6425 | M55: =L55/C1 -> 2.9795
B56: Изготовление штанцевой формы | H56: =G56 -> 0
B57: ИТОГО материалы | G57: =SUM(G15:G56) -> 74.235 | H57: =SUM(H15:H56) -> 8537.025 | L57: =SUM(L15:L56) -> 7195.4925 | M57: =SUM(M15:M56) -> 62.5695
C59: кол-во операций на тираж,шт | D59: расценка за операцию, руб | E59: сумма на изделие, руб | F59: сумма на тираж,руб | G59: справочно, наличие операций (0/1)
B60: ФОТ прямого производственного персонала, виды работ
B61: Размотка | C61: =C$3 -> 115 | D61: 0.1 | E61: =F61/C$1 -> 0.1 | F61: =G61*C61*D61 -> 11.5 | G61: 1
B62: кол-во резов | C62: =C6 -> 0 | D62: 0.2 | E62: =F62/C$1 -> 0 | F62: 0 | G62: 0
B63: Печать | C63: =C$3 -> 115 | D63: 0.2 | E63: 0.2 | F63: 23 | G63: 1
B64: УФ | C64: =C$3 -> 115 | D64: 0.2 | E64: 0 | F64: 0 | G64: 0
B65: ВД | C65: =C$3 -> 115 | D65: 0.01 | E65: 0 | F65: 0 | G65: 0
B66: Высечка | C66: =C$3 -> 115 | D66: 0.2 | E66: 0 | F66: 0 | G66: 0
B67: Склейка | C67: =C1 -> 115 | D67: 0.2 | E67: 0 | F67: 0 | G67: 0
B68: Каширование | C68: =C$3 -> 115 | D68: 0.3 | E68: 0 | F68: 0 | G68: 0
B69: Разрубка | C69: =C$3 -> 115 | D69: 0.1 | E69: 0.1 | F69: 11.5 | G69: 1
B70: упаковка | C70: =C1 -> 115 | D70: 0.2 | E70: 0 | F70: 0 | G70: 0
B71: Ламинирование | C71: =C$3 -> 115 | D71: 1.3 | E71: 0 | F71: 0 | G71: 0
B72: Окновклейка | C72: =C$3 -> 115 | D72: 0.5 | E72: 0 | F72: 0 | G72: 0
B73: Фальцовка | C73: =C1 -> 115 | D73: 0.01 | E73: 0 | F73: 0 | G73: 0
B74: ИТОГО ФОТ | E74: =SUM(E61:E73) -> 0.4 | F74: =SUM(F61:F73) -> 46
B75: ЕСН | E75: =E74*0.3 -> 0.12 | F75: =F74*0.3 -> 13.8
C77: затраты на 1 изд, руб | D77: затраты на тираж, руб
B78: ИТОГО прямых затрат на изделие | C78: =G57+E74 -> 74.635
B79: ИТОГО прямых затрат на тираж | D79: =F74+F75+H57 -> 8596.825
B80: Накладные расходы (расчет на листе накладные затраты)
B81: ФОТ АУП | C81: =D81/C$1 -> 4.022437139 | D81: =D103 -> 462.580271
B82: ЕСН | C82: =D82/C$1 -> 0.7468538335 | D82: =D104 -> 85.88819086
B83: аренда помещений | C83: 5.231045123 | D83: =D105 -> 601.5701892
B84: коммунальные расходы | C84: 0 | D84: =D106 -> 0
B85: Прочие расходы | C85: 0.8788487602 | D85: =D107+D108 -> 101.0676074
B86: ИТОГО накладных затрат на изделие | C86: =D87/C$1 -> 10.87918486
B87: ИТОГО накладных затрат на тираж | D87: =SUM(D80:D86) -> 1251.106258
B88: Итого себестоимость изделия (план) | C88: =C86+C78 -> 85.51418486 | D88: =D87+D79 -> 9847.931258
B89: Итого себестоимость изделия факт | C89: =M57+E74+E75+C86 -> 73.96868486 | D89: =C89*C1 -> 8506.398758
B90: цена реализации по договору, руб/изд | C90: 95
B91: цена реализации тиража, руб | C91: =C90*C1 -> 10925
B92: прибыль (+), убыток (-) | C92: =C91-D89 -> 2418.601242
B95: Справочно:
B96: расчет накладных затрат по заказно | C96: октябрь 2017
B97: =SUM(вкладыш:Финляндия!D37) -> 14.55312 | C97: =SUM(вкладыш:Финляндия!K37) -> 14.55312 | D97: =D79 -> 8596.825
B98: накладные затраты на тираж | C98: 30.07103094 | D98: =D97*C97/100 -> 1251.106258
B99: итого затраты на тираж | C99: 100 | D99: =D98+D97 -> 9847.931258
C101: октябрь 2017
B102: расшифровка накладных затрат | C102: уд вес в накл каждой статьи в общем обьеме накл затрат | D102: сумма на тираж постатейно
B103: зарплата АУП | C103: 36.97369971 | D103: =C103*D$98/100 -> 462.580271
B104: есн | C104: 6.864979715 | D104: =C104*D$98/100 -> 85.88819086
B105: аренда | C105: 48.0830613 | D105: 601.5701892
B106: коммуналка | C106: 0 | D106: 0
B107: амортизация | C107: 0 | D107: 0
B108: командировочные, хознужды | C108: 8.078259279 | D108: 101.0676074
B109: ИТОГО накладные расходы на данный тираж | C109: =SUM(C103:C108) -> 100 | D109: =SUM(D103:D108) -> 1251.106258
B136: =SUM(вкладыш:Финляндия!D42) -> 6 | C136: =SUM(вкладыш:Финляндия!K42) -> 6

Sheet Атва №2
B1: тираж | C1: 2500 | D1: данные от технологов
B2: =SUM(SUMIF(INDIRECT({""}&"!A1:A10"),$A2,INDIRECT({"Лист1","Лист2","Лист3"}&"!B1:B10"))) -> 
B3: кол-во листов | C3: 2800
B4: площадь гофрирования,м2 | C4: 1932
B5: размер листа (площадь лайнера),м2 | C5: 1854.72
B6: количество резов картона,шт | C6: 2500
B9: Калькуляция себестоимости изделия
B10: АТВА №2 | C10: 43012
B13: вид операции | C13: цена (план) | D13: кол-во, кг | E13: норма расхода (кг/м2) | F13: Коэфициент гофрирования, | G13: стоимость изделия, руб | H13: Стоимость тиража, руб | J13: факт цена по требованию | K13: кол-во, кг | L13: стоимость тиража факт | M13: стоимоть изделия, факт,руб
B14: Микрогофрокартон (изготовление)
B15: Картон (плоский слой)
B16: Бумага+картон, 135гр бурые 700мм (100010) | C16: 26 | D16: =E16*C$4 -> 260.82 | E16: 0.135 | G16: =H16/C1 -> 2.712528 | H16: =C16*D16 -> 6781.32 | J16: 20.16 | K16: =D16 -> 260.82 | L16: =J16*K16 -> 5258.1312 | M16: =L16/C1 -> 2.10325248
B17: Картон (флютинг)
B18: Бумага+картон, 135гр бурые 700мм (100010) | C18: 26 | D18: =C4*E18*F18 -> 339.066 | E18: 0.135 | F18: 1.3 | G18: =H18/C1 -> 3.5262864 | H18: =D18*C18 -> 8815.716 | J18: 20.16 | K18: =D18 -> 339.066 | L18: =J18*K18 -> 6835.57056 | M18: =L18/C1 -> 2.734228224
B19: Клей гофро
B20: Клей д/гофроагрегата | C20: 25 | D20: =E20*C$4 -> 19.32 | E20: 0.01 | G20: =H20/C1 -> 0.1932 | H20: =D20*C20 -> 483 | J20: 45.56 | K20: =D20 -> 19.32 | L20: =J20*K20 -> 880.2192 | M20: =L20/C1 -> 0.35208768
B21: Печатная часть
B22: Картон (Лайнер)
B23: Бумага+картон, 135гр бурые 720мм (901) | C23: 53 | D23: =E23*C5 -> 445.1328 | E23: 0.24 | G23: =H23/C1 -> 9.43681536 | H23: =D23*C23 -> 23592.0384 | J23: 45.08 | K23: =D23 -> 445.1328 | L23: =J23*K23 -> 20066.58662 | M23: =L23/C1 -> 8.02663465
B24: Клей ПВА
B25: Не предусмотрено | D25: =E25*C5 -> 64.9152 | E25: 0.035 | G25: =H25/C1 -> 0 | H25: =D25*C25 -> 0 | K25: =D25 -> 64.9152 | L25: =J25*K25 -> 0 | M25: =L25/C1 -> 0
B26: Клей кашировальный 2
B27: Не предусмотрено
B28: Клей ФСЛ
B29: Не предусмотрено
B30: Клей ФСЛ
B31: Не предусмотрено
B32: Лак ВД
B33: Лак глянцевый AguaGloss | C33: 150 | D33: =E33*C5 -> 7.41888 | E33: 0.004 | G33: =H33/C1 -> 0.4451328 | H33: =C33*D33 -> 1112.832 | J33: 111.98 | K33: =D33 -> 7.41888 | L33: =J33*K33 -> 830.7661824 | M33: =L33/C1 -> 0.332306473
B34: Лак УФ
B35: Лак УФ 3890 | C35: 412 | D35: =E35*C5 -> 11.12832 | E35: 0.006 | G35: =H35/C1 -> 1.833947136 | H35: =C35*D35 -> 4584.86784 | J35: 420.72 | K35: =D35 -> 11.12832 | L35: =J35*K35 -> 4681.90679 | M35: =L35/C1 -> 1.872762716
B36: Краска
B37: Краска офсетная Panton 280 | C37: 255 | D37: =E37*C5 -> 1.85472 | E37: 0.001 | G37: =H37/C1 -> 0.18918144 | H37: =D37*C37 -> 472.9536 | J37: 490 | K37: =D37 -> 1.85472 | L37: =J37*K37 -> 908.8128 | M37: =L37/C$1 -> 0.36352512
B41: Пластины (при наличии краски)
B42: Пластины д/СТП 1040*805 | C42: 730 | D42: 2 | G42: =H42/C1 -> 0.584 | H42: =C42*D42 -> 1460 | J42: 322.48 | K42: =D42 -> 2 | L42: =J42*K42 -> 644.96 | M42: =L42/C$1 -> 0.257984
B43: Пленка Ламин /м
B44: Не предусмотрено
B45: Пленка Окошко/мм
B46: Не предусмотрено
B47: Прокладка для тортов
B48: Не предусмотрено
B49: Бумага мешочная
B50: Не предусмотрено
B52: Спиртовая добавка IPSт ( при наличии краски)
B53: Концентрат увлажнения
B54: прочие расходные материалы (5% от объема осн материалов) | G54: =H54/C1 -> 0.9168545568 | H54: =(H51+H49+H47+H45+H43+H37+H35+H33+H31+H29+H27+H25+H23+H20+H18+H16+H38+H39+H40+H41)*5% -> 2292.136392 | L54: =(L50+L48+L46+L44+L42+L37+L35+L33+L31+L29+L27+L25+L23+L20+L18+L16)*5% -> 2005.347668 | M54: =L54/C1 -> 0.8021390671
B55: Изготовление штанцевой формы | H55: =G55 -> 0
B56: ИТОГО материалы | G56: =SUM(G15:G55) -> 19.83794569 | H56: =SUM(H15:H55) -> 49594.86423 | L56: =SUM(L15:L55) -> 42112.30102 | M56: =SUM(M15:M55) -> 16.84492041
C58: кол-во операций на тираж,шт | D58: расценка за операцию, руб | E58: сумма на изделие, руб | F58: сумма на тираж,руб | G58: справочно, наличие операций (0/1)
B59: ФОТ прямого производственного персонала, виды работ
B60: Размотка | C60: =C$3 -> 2800 | D60: 0.1 | E60: =F60/C$1 -> 0.112 | F60: =G60*C60*D60 -> 280 | G60: 1
B61: кол-во резов | C61: =C6 -> 2500 | D61: 0.2 | E61: =F61/C$1 -> 0.2 | F61: 500 | G61: 1
B62: Печать | C62: =C$3 -> 2800 | D62: 0.2 | E62: 0.224 | F62: 560 | G62: 1
B63: УФ | C63: =C$3 -> 2800 | D63: 0.2 | E63: 0.224 | F63: 560 | G63: 1
B64: ВД | C64: =C$3 -> 2800 | D64: 0.01 | E64: 0.0112 | F64: 28 | G64: 1
B65: Высечка | C65: =C$3 -> 2800 | D65: 0.2 | E65: 0.224 | F65: 560 | G65: 1
B66: Склейка | C66: =C1 -> 2500 | D66: 0.2 | E66: 0 | F66: 0 | G66: 0
B67: Каширование | C67: =C$3 -> 2800 | D67: 0.3 | E67: 0 | F67: 0 | G67: 0
B68: Разрубка | C68: =C$3 -> 2800 | D68: 0.1 | E68: 0 | F68: 0 | G68: 0
B69: упаковка | C69: =C1 -> 2500 | D69: 0.2 | E69: 0.2 | F69: 500 | G69: 1
B70: Ламинирование | C70: =C$3 -> 2800 | D70: 1.3 | E70: 0 | F70: 0 | G70: 0
B71: Окновклейка | C71: =C$3 -> 2800 | D71: 0.5 | E71: 0 | F71: 0 | G71: 0
B72: Фальцовка | C72: =C1 -> 2500 | D72: 0.01 | E72: 0 | F72: 0 | G72: 0
B73: ИТОГО ФОТ | E73: =SUM(E60:E72) -> 1.1952 | F73: =SUM(F60:F72) -> 2988
B74: ЕСН | E74: =E73*0.3 -> 0.35856 | F74: =F73*0.3 -> 896.4
C76: затраты на 1 изд, руб | D76: затраты на тираж, руб
B77: ИТОГО прямых затрат на изделие | C77: =G56+E73 -> 21.03314569
B78: ИТОГО прямых затрат на тираж | D78: =F73+F74+H56 -> 53479.26423
B79: Накладные расходы (расчет на листе накладные затраты)
B80: ФОТ АУП | C80: =D80/C$1 -> 5.530895464 | D80: =D102 -> 13827.23866
B81: ЕСН | C81: =D81/C$1 -> 1.026932265 | D81: =D103 -> 2567.330661
B82: аренда помещений | C82: 7.192744782 | D82: 17981.86196
B83: коммунальные расходы | C83: 0 | D83: 0
B84: Прочие расходы | C84: 1.208426746 | D84: =D106+D107 -> 3021.066864
B85: ИТОГО накладных затрат на изделие | C85: =D86/C$1 -> 14.95899926
B86: ИТОГО накладных затрат на тираж | D86: =SUM(D79:D85) -> 37397.49814
B87: Итого себестоимость изделия (план) | C87: =C85+C77 -> 35.99214495 | D87: =D86+D78 -> 90876.76237
B88: Итого себестоимость изделия факт | C88: =M56+E73+E74+C85 -> 33.35767967 | D88: =C88*C1 -> 83394.19917
B89: цена реализации по договору, руб/изд | C89: 36
B90: цена реализации тиража, руб | C90: =C89*C1 -> 90000
B91: прибыль (+), убыток (-) | C91: =C90-D88 -> 6605.800835
B94: Справочно:
B95: расчет накладных затрат по заказно | C95: октябрь 2017
B96: прямые затраты на тираж | C96: 69.92896906 | D96: =D78 -> 53479.26423
B97: =SUM(вкладыш:Финляндия!D37) -> 14.55312 | C97: =SUM(вкладыш:Финляндия!K37) -> 14.55312 | D97: =D96*C96/100 -> 37397.49814
B98: итого затраты на тираж | C98: 100 | D98: =D97+D96 -> 90876.76237
C100: октябрь 2017
B101: расшифровка накладных затрат | C101: уд вес в накл каждой статьи в общем обьеме накл затрат | D101: сумма на тираж постатейно
B102: зарплата АУП | C102: 36.97369971 | D102: =C102*D$97/100 -> 13827.23866
B103: есн | C103: 6.864979715 | D103: =C103*D$97/100 -> 2567.330661
B104: аренда | C104: 48.0830613 | D104: 17981.86196
B105: коммуналка | C105: 0 | D105: 0
B106: амортизация | C106: 0 | D106: 0
B107: командировочные, хознужды | C107: 8.078259279 | D107: 3021.066864
B108: ИТОГО накладные расходы на данный тираж | C108: =SUM(C102:C107) -> 100 | D108: =SUM(D102:D107) -> 37397.49814
B136: =SUM(вкладыш:Финляндия!D42) -> 6 | C136: =SUM(вкладыш:Финляндия!K42) -> 6

Sheet Финляндия
B1: тираж | C1: 20100 | D1: данные от технологов
B3: кол-во листов | C3: 20350
B4: площадь гофрирования,м2 | C4: 12542.4
B5: размер листа (площадь лайнера),м2 | C5: 12698.4
B6: количество резов картона,шт | C6: 10050
B9: Калькуляция себестоимости изделия
B10: Финляндия (салют Беслан)
B13: вид операции | C13: цена (план) | D13: кол-во, кг | E13: норма расхода (кг/м2) | F13: Коэфициент гофрирования, | G13: стоимость изделия, руб | H13: Стоимость тиража, руб | J13: факт цена по требованию | K13: кол-во, кг | L13: стоимость тиража факт | M13: стоимоть изделия, факт,руб
B14: Микрогофрокартон (изготовление)
B15: Картон (плоский слой)
B16: Бумага+картон, 135гр бурые 700мм (100010) | C16: 26 | D16: =E16*C$4 -> 1693.224 | E16: 0.135 | G16: =H16/C1 -> 2.19024 | H16: =C16*D16 -> 44023.824 | J16: 20.16 | K16: =D16 -> 1693.224 | L16: =J16*K16 -> 34135.39584 | M16: =L16/C1 -> 1.6982784
B17: Картон (флютинг)
B18: Бумага+картон, 135гр бурые 700мм (100010) | C18: 26 | D18: =C4*E18*F18 -> 2201.1912 | E18: 0.135 | F18: 1.3 | G18: =H18/C1 -> 2.847312 | H18: =D18*C18 -> 57230.9712 | J18: 20.16 | K18: =D18 -> 2201.1912 | L18: =J18*K18 -> 44376.01459 | M18: =L18/C1 -> 2.20776192
B19: Клей гофро
B20: Клей д/гофроагрегата | C20: 25 | D20: =E20*C$4 -> 125.424 | E20: 0.01 | G20: =H20/C1 -> 0.156 | H20: =D20*C20 -> 3135.6 | J20: 45.56 | K20: =D20 -> 125.424 | L20: =J20*K20 -> 5714.31744 | M20: =L20/C1 -> 0.2842944
B21: Печатная часть
B22: Картон (Лайнер)
B23: Бумага+картон, 135гр бурые 720мм (901) | C23: 53 | D23: =E23*C5 -> 3047.616 | E23: 0.24 | G23: =H23/C1 -> 8.036002388 | H23: =D23*C23 -> 161523.648 | J23: 45.08 | K23: =D23 -> 3047.616 | L23: =J23*K23 -> 137386.5293 | M23: =L23/C1 -> 6.83515071
B24: Клей ПВА
B25: Не предусмотрено | C25: 35 | D25: =E25*C5 -> 444.444 | E25: 0.035 | G25: =H25/C1 -> 0.7739074627 | H25: =D25*C25 -> 15555.54 | J25: 46.26 | K25: =D25 -> 444.444 | L25: =J25*K25 -> 20559.97944 | M25: =L25/C1 -> 1.022884549
B26: Клей кашировальный 2
B27: Не предусмотрено
B28: Клей ФСЛ
B29: Не предусмотрено
B30: Клей ФСЛ
B31: Не предусмотрено
B32: Лак ВД
B33: Лак глянцевый AguaGloss | C33: 150 | D33: =E33*C5 -> 50.7936 | E33: 0.004 | G33: =H33/C1 -> 0.3790567164 | H33: =C33*D33 -> 7619.04 | J33: 111.98 | K33: =D33 -> 50.7936 | L33: =J33*K33 -> 5687.867328 | M33: =L33/C1 -> 0.282978474
B34: Лак УФ
B35: Лак УФ 3890 | C35: 0 | D35: =E35*C5 -> 76.1904 | E35: 0.006 | G35: =H35/C1 -> 0 | H35: =C35*D35 -> 0 | J35: 0 | K35: =D35 -> 76.1904 | L35: =J35*K35 -> 0 | M35: =L35/C1 -> 0
B36: Краска
B37: Краска офсетная Panton 280 | C37: 255 | D37: =E37*C5 -> 12.6984 | E37: 0.001 | G37: =H37/C1 -> 0.1610991045 | H37: =D37*C37 -> 3238.092 | J37: 490 | K37: =D37 -> 12.6984 | L37: =J37*K37 -> 6222.216 | M37: =L37/C$1 -> 0.3095629851
B41: Пластины (при наличии краски)
B42: Пластины д/СТП 1040*805 | C42: 730 | D42: 4 | G42: =H42/C1 -> 0.1452736318 | H42: =C42*D42 -> 2920 | J42: 322.48 | K42: =D42 -> 4 | L42: =J42*K42 -> 1289.92 | M42: =L42/C$1 -> 0.06417512438
B43: Пленка Ламин /м
B44: Не предусмотрено
B45: Пленка Окошко/мм
B46: Не предусмотрено
B47: Прокладка для тортов
B48: Не предусмотрено
B49: Бумага мешочная
B50: Не предусмотрено
B52: Спиртовая добавка IPSт ( при наличии краски)
B53: Концентрат увлажнения
B54: прочие расходные материалы (5% от объема осн материалов) | G54: =H54/C1 -> 0.7271808836 | H54: =(H51+H49+H47+H45+H43+H37+H35+H33+H31+H29+H27+H25+H23+H20+H18+H16+H38+H39+H40+H41)*5% -> 14616.33576 | L54: =(L50+L48+L46+L44+L42+L37+L35+L33+L31+L29+L27+L25+L23+L20+L18+L16)*5% -> 12768.612 | M54: =L54/C1 -> 0.6352543282
B55: Изготовление штанцевой формы | H55: =G55 -> 0
B56: ИТОГО материалы | G56: =SUM(G15:G55) -> 15.41607219 | H56: =SUM(H15:H55) -> 309863.051 | L56: =SUM(L15:L55) -> 268140.8519 | M56: =SUM(M15:M55) -> 13.34034089
C58: кол-во операций на тираж,шт | D58: расценка за операцию, руб | E58: сумма на изделие, руб | F58: сумма на тираж,руб | G58: справочно, наличие операций (0/1)
B59: ФОТ прямого производственного персонала, виды работ
B60: Размотка | C60: =C$3 -> 20350 | D60: 0.1 | E60: =F60/C$1 -> 0.1012437811 | F60: =G60*C60*D60 -> 2035 | G60: 1
B61: кол-во резов | C61: =C6 -> 10050 | D61: 0.2 | E61: =F61/C$1 -> 0.1 | F61: 2010 | G61: 1
B62: Печать | C62: =C$3 -> 20350 | D62: 0.2 | E62: 0.2024875622 | F62: 4070 | G62: 1
B63: УФ | C63: =C$3 -> 20350 | D63: 0.2 | E63: 0 | F63: 0 | G63: 0
B64: ВД | C64: =C$3 -> 20350 | D64: 0.01 | E64: 0.01012437811 | F64: 203.5 | G64: 1
B65: Высечка | C65: =C$3 -> 20350 | D65: 0.2 | E65: 0.2024875622 | F65: 4070 | G65: 1
B66: Склейка | C66: =C1 -> 20100 | D66: 0.2 | E66: 0.2 | F66: 4020 | G66: 1
B67: Каширование | C67: =C$3 -> 20350 | D67: 0.3 | E67: 0.3037313433 | F67: 6105 | G67: 1
B68: Разрубка | C68: =C$3 -> 20350 | D68: 0.1 | E68: 0 | F68: 0 | G68: 0
B69: упаковка | C69: =C1 -> 20100 | D69: 0.2 | E69: 0.2 | F69: 4020 | G69: 1
B70: Ламинирование | C70: =C$3 -> 20350 | D70: 1.3 | E70: 0 | F70: 0 | G70: 0
B71: Окновклейка | C71: =C$3 -> 20350 | D71: 0.5 | E71: 0 | F71: 0 | G71: 0
B72: Фальцовка | C72: =C1 -> 20100 | D72: 0.01 | E72: 0 | F72: 0 | G72: 0
B73: ИТОГО ФОТ | E73: =SUM(E60:E72) -> 1.320074627 | F73: =SUM(F60:F72) -> 26533.5
B74: ЕСН | E74: =E73*0.3 -> 0.3960223881 | F74: =F73*0.3 -> 7960.05
C76: затраты на 1 изд, руб | D76: затраты на тираж, руб
B77: ИТОГО прямых затрат на изделие | C77: =G56+E73 -> 16.73614681
B78: ИТОГО прямых затрат на тираж | D78: =F73+F74+H56 -> 344356.601
B79: Накладные расходы (расчет на листе накладные затраты)
B80: ФОТ АУП | C80: =D80/C$1 -> 4.429578375 | D80: =D102 -> 89034.52533
B81: ЕСН | C81: =D81/C$1 -> 0.8224485493 | D81: =D103 -> 16531.21584
B82: аренда помещений | C82: 5.760518698 | D82: 115786.4258
B83: коммунальные расходы | C83: 0 | D83: 0
B84: Прочие расходы | C84: 0.9678036791 | D84: =D106+D107 -> 19452.85395
B85: ИТОГО накладных затрат на изделие | C85: =D86/C$1 -> 12.5723503 | D85: 11899.22
B86: ИТОГО накладных затрат на тираж | D86: =SUM(D79:D85) -> 252704.241
B87: Итого себестоимость изделия (план) | C87: =C85+C77 -> 29.30849711 | D87: =D86+D78 -> 597060.8419
B88: Итого себестоимость изделия факт | C88: =M56+E73+E74+C85 -> 27.6287882 | D88: =C88*C1 -> 555338.6429
B89: цена реализации по договору, руб/изд | C89: 18.5
B90: цена реализации тиража, руб | C90: =C89*C1 -> 371850
B91: прибыль (+), убыток (-) | C91: =C90-D88 -> -183488.6429
B94: Справочно:
B95: расчет накладных затрат по заказно | C95: октябрь 2017
B96: прямые затраты на тираж | C96: 69.92896906 | D96: =D78 -> 344356.601
B97: =SUM(вкладыш:Финляндия!D37) -> 14.55312 | C97: =SUM(вкладыш:Финляндия!K37) -> 14.55312 | D97: =D96*C96/100 -> 240805.021
B98: итого затраты на тираж | C98: 100 | D98: =D97+D96 -> 585161.6219
C100: октябрь 2017
B101: расшифровка накладных затрат | C101: уд вес в накл каждой статьи в общем обьеме накл затрат | D101: сумма на тираж постатейно
B102: зарплата АУП | C102: 36.97369971 | D102: =C102*D$97/100 -> 89034.52533
B103: есн | C103: 6.864979715 | D103: =C103*D$97/100 -> 16531.21584
B104: аренда | C104: 48.0830613 | D104: 115786.4258
B105: коммуналка | C105: 0 | D105: 0
B106: амортизация | C106: 0 | D106: 0
B107: командировочные, хознужды | C107: 8.078259279 | D107: 19452.85395
B108: ИТОГО накладные расходы на данный тираж | C108: =SUM(C102:C107) -> 100 | D108: =SUM(D102:D107) -> 240805.021
B136: =SUM(вкладыш:Финляндия!D42) -> 6 | C136: =SUM(вкладыш:Финляндия!K42) -> 6
